bitfinex-derivatives/quotes_ETHF0:USTF0_20260123
["timestamp","ask_amount","ask_price","bid_price","bid_amount"]
[1769174142483,0.15629565,2942.9,2941.1,7.29855848]
[1769174142882,0.15629565,2942.7,2941.2,2.9]
[1769174143179,0.15629565,2942.6,2941.0,0.17023]
[1769174143385,0.15629565,2942.4,2940.8,6.45064079]
[1769174143588,0.15629565,2942.2,2940.8,7.557]
[1769174146584,0.15629565,2942.2,2940.7,0.00509875]
[1769174148391,0.15629565,2942.2,2940.7,0.91033597]
[1769174148594,0.17015,2942.4,2940.8,0.08332212]
[1769174148787,0.30685594,2942.3,2940.8,0.08332212]
[1769174148986,0.17015,2942.4,2940.8,0.08332212]
[1769174149195,0.30687756,2942.3,2940.8,0.08332212]
[1769174149494,0.17015,2942.4,2940.8,0.08332212]
[1769174149686,0.30687756,2942.3,2940.8,0.25357212]
[1769174149892,0.15629565,2942.6,2940.8,0.25357212]
[1769174150094,0.46315874,2942.5,2940.8,3.30121291]
[1769174150297,0.15629565,2942.5,2940.8,0.25357212]
[1769174151390,0.15629565,2942.5,2940.8,3.30121291]
[1769174153393,0.15629565,2942.5,2940.9,2.9]
[1769174153792,0.15629565,2942.5,2940.9,2.9835583]
[1769174154001,0.15629565,2942.5,2941.0,0.0835583]
[1769174154193,0.17013,2942.8,2941.0,0.0835583]
[1769174154491,0.30688987,2942.7,2941.1,3.13119909]
[1769174154688,0.32642565,2942.8,2941.1,3.13119909]
[1769174154883,0.30688967,2942.7,2941.1,0.0835583]
[1769174155091,0.15629565,2942.7,2941.1,3.13119909]
[1769174155292,0.15629565,2942.7,2941.1,0.0835583]
[1769174158096,0.15629565,2942.7,2941.1,3.13119909]
[1769174158295,0.17013,2942.8,2941.2,0.08449992]
[1769174158495,0.00199844,2943.0,2941.3,0.08449992]
[1769174158692,0.30687238,2942.9,2941.4,0.08449992]
[1769174158896,0.00199844,2943.0,2941.4,0.08449992]
[1769174159696,0.15829409,2943.0,2941.4,0.08449992]
[1769174161298,0.15829409,2943.0,2941.3,3.21786079]
[1769174161606,0.15629565,2942.8,2941.3,0.17022]
[1769174161802,0.15629565,2942.8,2941.1,3.04764079]
[1769174162000,0.17013,2942.9,2941.1,3.04764079]
[1769174162001,0.1435538,2942.6,2941.1,7.23964079]
[1769174162398,0.1435538,2942.4,2941.0,3.04764079]
[1769174162599,0.1435538,2942.2,2940.8,4.36325]
[1769174165503,0.1435538,2942.2,2940.8,4.193]
[1769174165706,0.14353281,2942.0,2940.8,4.193]
[1769174170807,0.14353281,2942.0,2940.7,0.00509875]
[1769174174708,0.14353281,2941.8,2940.7,0.00509875]
[1769174175108,0.14353281,2941.6,2940.7,0.00509875]
[1769174197131,0.13802886,2941.4,2940.7,0.00509875]
[1769174203629,8.94764212,2942.3,2939.9,4.26669711]
[1769174203630,0.13802886,2940.8,2939.9,4.26669711]
[1769174203832,0.1400273,2940.8,2939.8,0.00354335]
[1769174205939,0.13802886,2940.5,2939.8,0.000878]
[1769174207333,0.13802886,2940.5,2939.2,5.12296608]
[1769174208327,0.13802886,2940.5,2939.2,5.1273525]
[1769174210136,0.13802886,2940.5,2939.5,0.90596608]
[1769174210334,0.00199844,2940.8,2939.8,0.90596608]
[1769174210533,0.1400273,2940.8,2939.8,0.90596608]
[1769174210729,0.13802886,2940.7,2939.5,0.90596608]
[1769174210935,0.13802886,2940.7,2939.2,5.2976925]
[1769174212339,0.13802886,2940.7,2939.2,5.1273525]
[1769174212642,0.13802886,2940.5,2939.2,5.1273525]
[1769174213345,0.13802886,2940.5,2939.5,0.90596608]
[1769174218555,0.13802886,2940.5,2939.3,0.90596608]
[1769174220060,0.13802886,2940.5,2939.2,4.22138642]
[1769174220356,0.13802886,2940.4,2939.2,4.22138642]
[1769174222751,1.07621608,2940.7,2939.3,0.90596608]
[1769174222956,0.17025,2940.7,2939.5,0.90596608]
[1769174223155,0.17025,2940.7,2939.7,0.90596608]
[1769174223554,0.14494097,2940.8,2939.7,0.90596608]
[1769174223754,0.00199844,2940.8,2939.7,0.90596608]
[1769174224464,0.00199844,2940.8,2939.9,0.90596608]
[1769174228861,0.00199844,2940.8,2940.2,0.90596608]
[1769174229067,0.00509875,2941.3,2940.2,0.90596608]
[1769174229969,0.0086421,2941.3,2940.2,0.99325495]
[1769174230370,1.04626846,2941.2,2939.9,0.90596608]
[1769174230871,1.04626846,2941.2,2939.8,0.08728887]
[1769174232768,0.14030238,2941.1,2939.6,3.95360687]
[1769174232974,0.14030238,2941.1,2939.6,0.90596608]
[1769174237378,0.14030238,2941.1,2939.9,0.90596608]
[1769174239073,0.0086421,2941.3,2940.2,0.90596608]
[1769174250180,0.0086421,2941.3,2940.2,0.99346642]
[1769174250381,0.0086421,2941.3,2940.3,0.08750034]
[1769174251584,0.0086421,2941.3,2940.5,0.99323409]
[1769174252379,0.90596608,2942.1,2940.6,0.08718135]
[1769174252583,1.20541616,2942.0,2940.6,0.0922801]
[1769174252779,0.30712776,2941.9,2940.6,0.0922801]
[1769174253087,0.90596608,2942.1,2940.6,0.0922801]
[1769174253287,1.20544967,2942.0,2940.6,0.0922801]
[1769174253489,0.30713598,2941.9,2940.6,0.0922801]
[1769174253684,0.90596608,2942.1,2940.8,0.90596608]
[1769174253884,1.20544485,2942.0,2940.8,0.90596608]
[1769174254184,0.90596608,2942.1,2940.8,0.90596608]
[1769174254185,0.3071346,2941.9,2940.8,0.90596608]
[1769174254388,0.90596608,2942.1,2940.8,0.90596608]
[1769174254682,1.20542737,2942.0,2940.8,0.90596608]
[1769174254987,0.30712978,2941.9,2940.8,0.90596608]
[1769174255182,0.90596608,2942.1,2940.8,0.90596608]
[1769174255390,1.20529288,2942.0,2940.8,0.90596608]
[1769174255590,0.30709529,2941.9,2940.8,0.90596608]
[1769174255789,0.90596608,2942.1,2940.8,0.90596608]
[1769174256087,1.20529296,2942.0,2940.8,0.90596608]
[1769174256289,0.30709531,2941.9,2940.8,0.90596608]
[1769174256488,0.90596608,2942.1,2940.8,0.90596608]
[1769174256687,1.20519433,2942.0,2940.8,0.90596608]
[1769174256888,0.30706995,2941.9,2940.8,0.90596608]
[1769174257092,0.90596608,2942.1,2940.8,0.90596608]
[1769174257291,0.3070528,2942.0,2940.8,0.90596608]
[1769174257591,0.90596608,2942.1,2940.8,0.90596608]
[1769174257792,0.30703531,2942.0,2940.8,0.90596608]
[1769174257994,0.90596608,2942.1,2940.8,0.90596608]
[1769174258186,0.30704591,2942.0,2940.8,0.90596608]
[1769174258382,0.90596608,2942.1,2940.8,0.90596608]
[1769174258592,0.30699943,2942.0,2940.8,0.90596608]
[1769174258893,0.17017,2942.2,2940.6,0.0922801]
[1769174259185,0.30699945,2942.1,2940.6,0.2625401]
[1769174259394,0.13850109,2942.3,2940.6,0.2625401]
[1769174259395,0.13850109,2942.3,2940.8,0.07707414]
[1769174259592,0.30695266,2942.2,2940.8,0.07707414]
[1769174259892,0.13850109,2942.3,2940.8,0.07707414]
[1769174260086,0.30695079,2942.2,2940.8,0.07707414]
[1769174260287,0.13850109,2942.3,2940.8,0.07707414]
[1769174261495,2.96686084,2942.7,2941.0,0.07733464]
[1769174261496,0.30864109,2942.7,2941.0,0.07733464]
[1769174261796,0.13850109,2942.5,2941.0,0.07733464]
[1769174262592,0.13850109,2942.5,2940.9,0.17024]
[1769174265401,0.13850109,2942.5,2941.0,2.9]
[1769174265996,0.13850109,2942.5,2940.9,0.17024]
[1769174266396,0.13850109,2942.5,2941.1,0.07626623]
[1769174266592,0.13850109,2942.9,2941.2,0.07626623]
[1769174266792,1.20346299,2942.8,2941.2,0.07626623]
[1769174266995,1.20346299,2942.7,2941.2,0.07626623]
[1769174267199,0.13850109,2942.9,2941.2,0.24648623]
[1769174267393,0.44508664,2942.8,2941.2,0.24648623]
[1769174267589,0.13850109,2942.8,2941.2,0.24648623]
[1769174268590,0.13850109,2941.7,2940.6,0.00509875]
[1769174269990,0.13850109,2942.1,2940.6,0.07983941]
[1769174270802,0.13850109,2942.1,2940.6,0.00509875]
[1769174271002,0.30665872,2942.0,2940.6,0.00509875]
[1769174271300,0.13850109,2941.8,2940.6,0.00509875]
[1769174284819,0.1495051,2941.6,2940.6,0.00509875]
[1769174292521,0.14101178,2942.3,2940.6,0.00509875]
[1769174292822,0.14101178,2942.1,2940.6,0.00509875]
[1769174294518,0.14101178,2942.1,2940.6,0.17535875]
[1769174295415,0.14101178,2942.1,2940.7,0.90572084]
[1769174298027,0.14101178,2942.1,2940.6,0.17535875]
[1769174301417,0.14101178,2941.9,2940.6,0.00509875]
[1769174305428,0.90572084,2942.8,2940.6,0.00509875]
[1769174305628,0.17017,2942.2,2940.6,0.00509875]
[1769174305830,0.30709888,2942.1,2940.6,0.00509875]
[1769174306027,0.17017,2942.2,2940.6,0.00509875]
[1769174306225,0.30709895,2942.1,2940.6,0.00509875]
[1769174306524,0.17017,2942.2,2940.6,0.00509875]
[1769174306724,0.30710028,2942.1,2940.6,0.00509875]
[1769174307025,0.17017,2942.2,2940.6,0.00509875]
[1769174307227,1.21476781,2942.1,2940.6,0.00509875]
[1769174307427,0.14101178,2942.1,2940.6,0.00509875]
[1769174311533,0.14101178,2942.1,2940.6,0.17535875]
[1769174311732,0.14101178,2942.1,2940.6,3.22175933]
[1769174316928,0.14101178,2942.1,2940.6,3.3611852]
[1769174317435,0.14408785,2942.5,2940.8,0.13942587]
[1769174317630,1.2131745,2942.4,2940.9,4.34242587]
[1769174317830,0.14408785,2942.5,2940.9,8.29454729]
[1769174318033,0.30718186,2942.4,2940.9,8.29454729]
[1769174318228,0.14408785,2942.5,2940.9,5.24814671]
[1769174318437,0.30721624,2942.4,2940.9,8.29454729]
[1769174318738,0.14408785,2942.5,2941.0,0.13942587]
[1769174318938,0.30721618,2942.4,2941.0,0.13942587]
[1769174319128,0.14408785,2942.5,2941.0,0.13942587]
[1769174319334,0.30726182,2942.4,2941.0,0.13942587]
[1769174319532,0.14408785,2942.5,2941.0,0.13942587]
[1769174319837,0.30726182,2942.4,2941.0,0.13942587]
[1769174320037,0.14408785,2942.5,2941.1,2.9]
[1769174320240,0.14408785,2942.3,2941.1,2.9]
[1769174320833,0.14408785,2942.3,2941.2,0.90546126]
[1769174322736,0.14408785,2942.7,2941.5,0.90546126]
[1769174322938,0.14408785,2942.2,2941.5,0.00317461]
[1769174323137,0.14408785,2941.9,2941.0,3.04640058]
[1769174323338,0.14408785,2941.9,2940.7,7.30890039]
[1769174323539,0.14408785,2941.9,2940.8,2.9]
[1769174323740,0.14408785,2941.9,2941.2,0.00509875]
[1769174324143,0.14665698,2941.9,2941.2,0.00936918]
[1769174329148,0.14408785,2941.6,2940.6,3.04640058]
[1769174329343,0.14408785,2941.6,2940.5,7.615]
[1769174329948,0.14408785,2941.6,2940.5,7.61810402]
[1769174330251,0.00509875,2941.3,2940.5,7.61810402]
[1769174332251,0.00509875,2941.3,2940.5,8.52356528]
[1769174340872,0.14408785,2941.2,2940.5,7.61810402]
[1769174341463,0.14408785,2941.2,2940.5,3.10202664]
[1769174341763,0.30722708,2941.1,2940.5,3.01918834]
[1769174341965,0.91056001,2941.3,2940.5,3.01918834]
[1769174342163,1.21259783,2941.2,2940.5,3.01918834]
[1769174342363,0.91056001,2941.3,2940.5,3.01918834]
[1769174342564,0.30703369,2941.2,2940.5,3.01918834]
[1769174342765,0.91056001,2941.3,2940.5,3.01918834]
[1769174342965,0.30703376,2941.2,2940.5,3.01918834]
[1769174343167,0.91056001,2941.3,2940.5,0.00310402]
[1769174343365,0.30688457,2941.2,2940.5,0.00310402]
[1769174343569,0.91056001,2941.3,2940.5,0.00310402]
[1769174343768,0.30688457,2941.2,2940.5,0.00310402]
[1769174343969,0.91056001,2941.3,2940.5,0.00310402]
[1769174348678,0.90546126,2941.0,2940.0,4.42903869]
[1769174348873,0.90546126,2941.0,2940.0,0.15203869]
[1769174349876,0.00509875,2941.3,2940.0,0.0027424]
[1769174349877,0.90546126,2940.7,2940.0,0.0027424]
[1769174350978,0.90546126,2940.4,2939.6,0.15478458]
[1769174352080,0.90546126,2940.6,2939.6,0.15800061]
[1769174355581,1.07571126,2940.8,2939.6,0.15800061]
[1769174361584,0.90546126,2940.6,2939.6,0.15800061]
[1769174364877,0.90546126,2940.6,2939.6,0.00321603]
[1769174365985,0.90546126,2940.6,2939.6,0.15789943]
[1769174366183,0.17025,2940.7,2939.6,0.15789943]
[1769174367189,0.30671201,2940.6,2939.6,0.15789943]
[1769174367489,0.17025,2940.7,2939.6,0.15789943]
[1769174368285,0.30684991,2940.6,2939.6,0.15789943]
[1769174368485,0.17025,2940.7,2939.6,0.15789943]
[1769174368790,0.30685055,2940.6,2939.6,0.15789943]
[1769174368994,0.17025,2940.7,2939.6,0.15789943]
[1769174369187,0.30685546,2940.6,2939.6,0.15789943]
[1769174369385,0.17025,2940.7,2939.6,0.15789943]
[1769174369581,0.30704697,2940.6,2939.6,0.15789943]
[1769174369785,0.17025,2940.7,2939.6,0.15789943]
[1769174369989,0.30704596,2940.6,2939.6,0.15789943]
[1769174370193,0.17025,2940.7,2939.6,0.15789943]
[1769174370393,0.30705624,2940.6,2939.6,0.15789943]
[1769174370594,0.17025,2940.7,2939.6,0.15789943]
[1769174370893,1.2119979,2940.6,2939.6,0.15789943]
[1769174371094,0.17025,2940.7,2939.6,0.15789943]
[1769174371293,1.21211029,2940.6,2939.6,0.15789943]
[1769174371495,0.30716942,2940.5,2939.6,0.15789943]
[1769174371794,0.17025,2940.7,2939.6,0.15789943]
[1769174371994,1.21246729,2940.6,2939.6,0.15789943]
[1769174372199,1.07569126,2941.2,2939.9,0.15488036]
[1769174372493,1.21255256,2941.1,2939.9,0.15488036]
[1769174372693,1.21255256,2941.0,2939.9,0.15488036]
[1769174372992,1.21255256,2940.9,2939.9,0.15488036]
[1769174373192,1.21255256,2940.8,2939.9,0.15488036]
[1769174373393,1.07569126,2941.2,2939.9,0.15488036]
[1769174373593,1.212683,2941.1,2939.9,0.15488036]
[1769174373793,1.212683,2941.0,2939.9,0.15488036]
[1769174373993,1.212683,2940.9,2939.9,0.15488036]
[1769174374195,1.212683,2940.8,2939.9,0.15488036]
[1769174374394,1.07569126,2941.2,2939.9,0.15488036]
[1769174374696,1.21286761,2941.1,2939.9,0.15488036]
[1769174374896,1.21286761,2941.0,2939.9,0.15488036]
[1769174375097,1.21286761,2940.9,2939.9,0.15488036]
[1769174375298,1.21286761,2940.8,2939.9,0.15488036]
[1769174375498,1.07569126,2941.2,2939.9,0.15488036]
[1769174375696,1.2130488,2941.1,2939.9,0.15488036]
[1769174375896,1.2130488,2941.0,2939.9,0.15488036]
[1769174376099,1.2130488,2940.9,2939.9,0.15488036]
[1769174376396,1.07569126,2941.2,2939.9,0.15488036]
[1769174376397,1.2130488,2940.8,2939.9,0.15488036]
[1769174376596,1.07569126,2941.2,2939.9,0.15488036]
[1769174376796,1.21330615,2941.1,2939.9,0.15488036]
[1769174376996,1.21330615,2941.0,2939.9,0.15488036]
[1769174377297,1.21330615,2940.9,2939.9,0.15488036]
[1769174377497,1.21330615,2940.8,2939.9,0.15488036]
[1769174377698,1.07569126,2941.2,2939.9,0.15488036]
[1769174377900,1.21355593,2941.1,2939.9,0.15488036]
[1769174378100,1.21355593,2941.0,2939.9,0.15488036]
[1769174378302,1.21355593,2940.9,2939.9,0.15488036]
[1769174378496,1.21355593,2940.8,2939.9,0.15488036]
[1769174378698,1.07569126,2941.2,2939.9,0.15488036]
[1769174378899,1.21377709,2941.1,2939.9,0.15488036]
[1769174379099,1.21377709,2941.0,2939.9,0.15488036]
[1769174379400,1.21377709,2940.9,2939.9,0.15488036]
[1769174379699,0.90626501,2940.8,2939.9,0.15488036]
[1769174379896,1.07569126,2941.2,2939.9,0.15488036]
[1769174380091,1.21384059,2941.1,2939.9,0.15488036]
[1769174380397,1.21384059,2941.0,2939.9,0.15488036]
[1769174380700,1.21384059,2940.9,2939.9,0.15488036]
[1769174381005,0.17023,2941.2,2939.9,0.15488036]
[1769174381206,1.21377135,2941.1,2939.9,0.15488036]
[1769174381503,1.21377135,2941.0,2939.9,0.15488036]
[1769174381705,1.21377135,2940.9,2939.9,0.15488036]
[1769174381902,0.30751122,2940.8,2939.9,0.15488036]
[1769174382207,0.17023,2941.2,2939.9,0.15488036]
[1769174382401,1.21357527,2941.1,2939.9,0.15488036]
[1769174382601,1.21357527,2941.0,2939.9,0.15488036]
[1769174382802,1.21357527,2940.9,2939.9,0.15488036]
[1769174383002,0.30745926,2940.8,2939.9,0.15488036]
[1769174383298,0.17023,2941.2,2939.9,0.15488036]
[1769174383501,1.21351912,2941.1,2939.9,0.15488036]
[1769174383699,1.21351912,2941.0,2939.9,0.15488036]
[1769174383900,1.21351912,2940.9,2939.9,0.15488036]
[1769174384103,0.17023,2941.2,2939.9,0.15488036]
[1769174384309,1.21350752,2941.1,2939.9,0.15488036]
[1769174384605,1.21350752,2941.0,2939.9,0.15488036]
[1769174384802,1.21350752,2940.9,2939.9,0.15488036]
[1769174385002,0.30743258,2940.8,2939.9,0.15488036]
[1769174385208,0.17023,2941.1,2939.9,0.15488036]
[1769174385513,1.38368897,2941.0,2939.6,0.00321603]
[1769174385706,1.21344897,2940.9,2939.6,0.15888815]
[1769174385900,0.30742508,2940.8,2939.6,0.15888815]
[1769174386104,0.17024,2941.0,2939.6,0.15888815]
[1769174386303,1.2134918,2940.9,2939.6,0.15888815]
[1769174386506,0.30743677,2940.8,2939.6,0.15888815]
[1769174386700,0.17024,2941.0,2939.6,0.15888815]
[1769174386905,1.2134926,2940.9,2939.6,0.15888815]
[1769174387106,0.3074369,2940.8,2939.6,0.15888815]
[1769174387410,0.30743921,2940.7,2939.6,0.15888815]
[1769174387611,0.30745472,2940.6,2939.6,0.15888815]
[1769174387811,0.17025,2940.8,2939.6,0.15888815]
[1769174388013,1.21358128,2940.7,2939.6,0.15888815]
[1769174388199,1.21358128,2940.6,2939.6,0.15888815]
[1769174388404,0.17025,2940.8,2939.6,0.15888815]
[1769174388605,1.21360581,2940.7,2939.6,0.15888815]
[1769174388808,1.21360581,2940.6,2939.6,0.15888815]
[1769174389008,0.17025,2940.8,2939.6,0.15888815]
[1769174389208,1.21360585,2940.7,2939.6,0.15888815]
[1769174389409,1.21360585,2940.6,2939.6,0.15888815]
[1769174389611,0.30747002,2940.5,2939.6,0.15888815]
[1769174389802,0.17025,2940.8,2939.6,0.15888815]
[1769174390009,1.21362965,2940.7,2939.6,0.15888815]
[1769174390210,1.21362965,2940.6,2939.6,0.15888815]
[1769174390511,0.30747008,2940.5,2939.6,0.15888815]
[1769174390711,0.17025,2940.8,2939.6,0.15888815]
[1769174390910,1.21365132,2940.7,2939.6,0.15888815]
[1769174391214,1.21365132,2940.6,2939.6,0.15888815]
[1769174391416,0.30747548,2940.5,2939.6,0.15888815]
[1769174391716,0.17025,2940.8,2939.6,0.15888815]
[1769174391914,1.21368508,2940.7,2939.6,0.15888815]
[1769174392112,1.21368508,2940.6,2939.6,0.15888815]
[1769174392312,0.30748389,2940.5,2939.6,0.15888815]
[1769174392512,0.17025,2940.8,2939.6,0.15888815]
[1769174392714,1.21372151,2940.7,2939.6,0.15888815]
[1769174393012,0.17025,2940.8,2939.6,0.15888815]
[1769174393013,1.21372151,2940.6,2939.6,0.15888815]
[1769174393214,0.30749298,2940.5,2939.6,0.15888815]
[1769174393413,0.17025,2940.8,2939.6,0.15888815]
[1769174393617,1.21375853,2940.7,2939.6,0.15888815]
[1769174393818,1.21375853,2940.6,2939.6,0.15888815]
[1769174394012,0.30750221,2940.5,2939.6,0.15888815]
[1769174394211,0.17025,2940.8,2939.6,0.15888815]
[1769174394414,1.21380062,2940.7,2939.6,0.15888815]
[1769174394619,1.21380062,2940.6,2939.6,0.15888815]
[1769174394917,0.30751271,2940.5,2939.6,0.15888815]
[1769174395220,0.17025,2940.8,2939.6,0.15888815]
[1769174395421,1.21386114,2940.7,2939.6,0.15888815]
[1769174395619,1.21386114,2940.6,2939.6,0.15888815]
[1769174395811,0.30752818,2940.5,2939.6,0.15888815]
[1769174396115,0.17025,2940.8,2939.6,0.15888815]
[1769174396316,1.2139014,2940.7,2939.6,0.15888815]
[1769174396517,1.2139014,2940.6,2939.6,0.15888815]
[1769174396720,0.30753798,2940.5,2939.6,0.15888815]
[1769174396922,0.17025,2940.8,2939.6,0.15888815]
[1769174397114,1.21387701,2940.7,2939.6,0.15888815]
[1769174397418,1.2139685,2940.6,2939.6,0.15888815]
[1769174397616,1.21396712,2940.5,2939.6,0.15888815]
[1769174397813,0.30753106,2940.4,2939.6,0.15888815]
[1769174398015,0.90643744,2941.0,2939.6,0.15888815]
[1769174398221,1.21400227,2940.9,2939.6,0.15888815]
[1769174398421,1.21400227,2940.8,2939.6,0.15888815]
[1769174398721,0.17026,2940.6,2939.6,0.15888815]
[1769174398922,0.3075646,2940.5,2939.6,0.15888815]
[1769174399214,0.3075646,2940.4,2939.6,0.15888815]
[1769174399407,0.17026,2940.6,2939.6,0.15888815]
[1769174399612,0.30756074,2940.5,2939.6,0.15888815]
[1769174399813,0.30756074,2940.4,2939.6,0.15888815]
[1769174400009,0.17026,2940.6,2939.6,0.15888815]
[1769174400216,0.30756075,2940.5,2939.6,0.15888815]
[1769174400515,0.30756075,2940.4,2939.6,0.15888815]
[1769174400717,0.17026,2940.6,2939.6,0.15888815]
[1769174400919,1.21321423,2940.5,2939.6,0.15888815]
[1769174401123,1.21321423,2940.4,2939.6,0.15888815]
[1769174401420,0.17026,2940.6,2939.6,0.15888815]
[1769174401421,0.30756414,2940.3,2939.6,0.15888815]
[1769174401721,0.17026,2940.6,2939.6,0.15888815]
[1769174401921,1.21323922,2940.5,2939.6,0.15888815]
[1769174402117,1.21323922,2940.4,2939.6,0.15888815]
[1769174402319,0.17026,2940.6,2939.6,0.15888815]
[1769174402519,1.21307117,2940.5,2939.6,0.15888815]
[1769174402719,1.21307117,2940.4,2939.6,0.15888815]
[1769174402919,0.17026,2940.6,2939.6,0.15888815]
[1769174403221,1.21307178,2940.5,2939.6,0.15888815]
[1769174403423,1.21307178,2940.4,2939.6,0.15888815]
[1769174403618,0.17026,2940.6,2939.6,0.15888815]
[1769174403822,1.21292837,2940.5,2939.6,0.15888815]
[1769174404017,0.30747933,2940.4,2939.6,0.15888815]
[1769174404217,0.17026,2940.6,2939.6,0.15888815]
[1769174404413,1.21282777,2940.5,2939.6,0.15888815]
[1769174404625,0.30745927,2940.4,2939.6,0.15888815]
[1769174404826,0.17026,2940.6,2939.6,0.15888815]
[1769174405120,1.21283051,2940.5,2939.6,0.15888815]
[1769174405321,1.21283051,2940.4,2939.6,0.15888815]
[1769174405520,0.30745992,2940.3,2939.6,0.15888815]
[1769174405720,0.17026,2940.6,2939.6,0.15888815]
[1769174406021,1.21271594,2940.5,2939.6,0.15888815]
[1769174406221,0.17026,2940.6,2939.6,0.15888815]
[1769174406222,1.21271594,2940.4,2939.6,0.15888815]
[1769174406424,0.17026,2940.6,2939.6,0.15888815]
[1769174406618,0.30739795,2940.5,2939.6,0.15888815]
[1769174406922,0.17023,2941.2,2939.6,0.15888815]
[1769174407116,1.2125001,2941.1,2939.6,0.15888815]
[1769174407320,1.2125001,2941.0,2939.6,0.15888815]
[1769174407523,1.2125001,2940.9,2939.6,0.15888815]
[1769174407719,0.30738307,2940.8,2939.6,0.15888815]
[1769174407915,0.17023,2941.2,2939.6,0.15888815]
[1769174408120,1.21242308,2941.1,2939.6,0.15888815]
[1769174408324,1.21242308,2941.0,2939.6,0.15888815]
[1769174408518,0.30736148,2940.9,2939.6,0.15888815]
[1769174408721,0.17023,2941.2,2939.6,0.15888815]
[1769174408919,1.21236999,2941.1,2939.6,0.15888815]
[1769174409122,1.21236999,2941.0,2939.6,0.15888815]
[1769174409428,0.3073481,2940.9,2939.6,0.15888815]
[1769174409625,0.17023,2941.2,2939.6,0.15888815]
[1769174409825,1.21242004,2941.1,2939.6,0.15888815]
[1769174410026,1.21242004,2941.0,2939.6,0.15888815]
[1769174410222,1.21242004,2940.9,2939.6,0.15888815]
[1769174410524,0.00509875,2941.3,2940.4,0.15702278]
[1769174411930,0.17016,2942.3,2940.4,0.15702278]
[1769174412226,0.17016,2942.3,2940.7,0.15672888]
[1769174415729,0.17013,2942.9,2940.8,0.15971113]
[1769174416034,0.17013,2942.9,2940.9,0.15971113]
[1769174416035,0.30604498,2942.8,2940.9,0.15971113]
[1769174416236,0.30604498,2942.8,2940.8,0.17024]
[1769174416237,0.17013,2942.9,2941.2,0.15970992]
[1769174416533,0.17314113,2942.9,2941.2,0.15970992]
[1769174420729,0.90944857,2942.9,2941.2,0.15970992]
[1769174420936,0.17014,2942.7,2941.2,0.15970992]
[1769174428239,0.00301113,2942.9,2941.2,0.15970992]
[1769174431646,0.90643744,2942.8,2941.2,0.15970992]
[1769174432044,0.17015,2942.5,2941.2,0.15970992]
[1769174434747,0.00301113,2942.9,2941.2,0.15970992]
[1769174435452,0.00301113,2942.9,2941.3,0.16033946]
[1769174436849,0.00301113,2942.9,2941.4,0.16033845]
[1769174437050,0.00301113,2942.9,2941.5,0.16033845]
[1769174438652,0.90643744,2942.8,2941.5,0.16033845]
[1769174438854,1.07656744,2942.8,2941.5,0.16033845]
[1769174439056,0.17013,2942.8,2941.5,0.16033845]
[1769174441055,0.17013,2942.8,2941.6,0.16041866]
[1769174441659,0.90834489,2942.9,2941.6,0.16041866]
[1769174441859,1.20881978,2942.8,2941.6,0.16041866]
[1769174442054,0.90834489,2942.9,2941.6,0.16041866]
[1769174442257,1.20881947,2942.8,2941.6,0.16041866]
[1769174442454,0.90834489,2942.9,2941.6,0.16041866]
[1769174442654,1.20912287,2942.8,2941.6,0.16041866]
[1769174442852,0.90533376,2942.6,2941.6,0.16041866]
[1769174445859,1.07847489,2942.9,2941.6,0.16041866]
[1769174446058,1.21005408,2942.8,2941.6,0.16041866]
[1769174446259,1.21005111,2942.7,2941.6,0.16041866]
[1769174446462,1.21005111,2942.6,2941.7,0.15931936]
[1769174446658,1.07847489,2942.9,2941.7,0.16304781]
[1769174446858,1.21007506,2942.8,2941.7,0.16304781]
[1769174447161,1.21007506,2942.7,2941.7,0.16304781]
[1769174447360,1.21007506,2942.6,2941.7,0.16304781]
[1769174447659,0.17314113,2942.9,2941.7,0.16304781]
[1769174447861,1.21006404,2942.8,2941.7,0.16304781]
[1769174448060,1.21006404,2942.7,2941.7,0.16304781]
[1769174448259,1.21006404,2942.6,2941.7,0.16304781]
[1769174448458,0.17314113,2942.9,2941.7,0.16304781]
[1769174448659,1.21005885,2942.8,2941.7,0.16304781]
[1769174448859,1.21005885,2942.7,2941.7,0.16304781]
[1769174449059,1.21005885,2942.6,2941.7,0.16304781]
[1769174449261,1.07847489,2942.9,2941.7,0.16304781]
[1769174449461,1.2100635,2942.8,2941.7,0.16304781]
[1769174449760,1.2100635,2942.7,2941.7,0.16304781]
[1769174449963,1.2100635,2942.6,2941.7,0.16304781]
[1769174450260,1.07847489,2942.9,2941.7,0.16304781]
[1769174450460,1.21006074,2942.8,2941.7,0.16304781]
[1769174450662,1.21006074,2942.7,2941.7,0.16304781]
[1769174450858,1.21006074,2942.6,2941.7,0.16304781]
[1769174451059,1.07847489,2942.9,2941.7,0.16304781]
[1769174451260,1.21004586,2942.8,2941.7,0.16304781]
[1769174451459,1.21004586,2942.7,2941.7,0.16304781]
[1769174451660,1.21004586,2942.6,2941.7,0.16304781]
[1769174451862,1.07847489,2942.9,2941.7,0.16304781]
[1769174452058,1.21009623,2942.8,2941.7,0.16304781]
[1769174452258,0.90533376,2942.6,2941.7,0.16304781]
[1769174452465,0.90533376,2942.3,2941.3,0.15926755]
[1769174452865,0.00301113,2942.9,2941.3,0.15926755]
[1769174452866,0.90533376,2942.6,2941.3,0.15926755]
[1769174453168,1.2102724,2942.5,2941.3,0.15926755]
[1769174453371,1.2102724,2942.4,2941.3,0.15926755]
[1769174453669,0.17015,2942.5,2941.3,0.161869]
[1769174453868,1.21027244,2942.4,2941.3,0.161869]
[1769174454169,0.17015,2942.5,2941.3,0.161869]
[1769174454368,1.21027013,2942.4,2941.3,0.161869]
[1769174454564,0.17015,2942.5,2941.3,0.161869]
[1769174454870,0.17015,2942.5,2941.5,0.15922152]
[1769174455073,0.90834489,2942.9,2941.8,0.15922152]
[1769174455370,1.21018973,2942.8,2941.8,0.15922152]
[1769174455567,1.21018973,2942.7,2941.3,0.00260145]
[1769174455767,0.90533376,2941.9,2941.3,0.00260145]
[1769174455972,0.90533376,2941.9,2940.9,0.15731502]
[1769174456365,0.90533376,2942.2,2940.9,0.15731502]
[1769174456567,1.20993052,2942.1,2940.9,0.15731502]
[1769174456769,1.20993052,2942.0,2940.9,0.15731502]
[1769174456963,0.17016,2942.3,2941.3,0.15731444]
[1769174457273,1.20992416,2942.2,2941.3,0.15731444]
[1769174457472,0.90533376,2942.8,2941.5,1.06553696]
[1769174457674,1.20947832,2942.7,2941.6,0.1602032]
[1769174457867,0.90533376,2942.8,2941.6,0.1602032]
[1769174457868,1.20947832,2942.6,2941.6,0.1602032]
[1769174458072,1.20947832,2942.5,2941.6,0.1602032]
[1769174458273,1.20945292,2942.4,2941.6,0.1602032]
[1769174458467,1.07546376,2942.8,2941.6,0.1602032]
[1769174458668,1.20938305,2942.7,2941.6,0.1602032]
[1769174458869,1.20938305,2942.6,2941.6,0.1602032]
[1769174459068,1.20938305,2942.5,2941.6,0.1602032]
[1769174459269,1.20938305,2942.4,2941.6,0.1602032]
[1769174459472,1.07546376,2942.8,2941.6,0.1602032]
[1769174459676,1.20935615,2942.7,2941.6,0.1602032]